[Event "Late-Titled-Tuesday-Blitz-April-30-2024"]
[Site "Chess.com"]
[Date "2024.04.30"]
[Round "4"]
[White "brother-bear"]
[Black "ferdipy"]
[Result "0-1"]
[WhiteElo "2047"]
[BlackElo "2286"]
[TimeControl "180+1"]
[EndTime "14:39:27 PDT"]
[Termination "ferdipy won on time"]

1. e4 {[%clk 0:03:00.9]} 1... e6 {[%clk 0:02:58.9]} 2. d4 {[%clk 0:02:59.3]}
2... d5 {[%clk 0:02:59.5]} 3. Nc3 {[%clk 0:02:58.6]} 3... Bb4 {[%clk 0:02:58.9]}
4. e5 {[%clk 0:02:53.8]} 4... c5 {[%clk 0:02:59.3]} 5. Bd2 {[%clk 0:02:52.2]}
5... cxd4 {[%clk 0:02:57.7]} 6. Nb5 {[%clk 0:02:50]} 6... Be7 {[%clk 0:02:57.2]}
7. f4 {[%clk 0:02:47.8]} 7... Nc6 {[%clk 0:02:56.2]} 8. Nf3 {[%clk 0:02:47.8]}
8... Qb6 {[%clk 0:02:53.3]} 9. a4 {[%clk 0:02:43.9]} 9... a6 {[%clk 0:02:53.4]}
10. a5 {[%clk 0:02:43.4]} 10... Qd8 {[%clk 0:02:48]} 11. Nbxd4 {[%clk
0:02:41.4]} 11... Bd7 {[%clk 0:02:47.2]} 12. Bd3 {[%clk 0:02:31.9]} 12... Rc8
{[%clk 0:02:44]} 13. O-O {[%clk 0:01:39.9]} 13... Nh6 {[%clk 0:02:42.8]} 14. Kh1
{[%clk 0:01:35.3]} 14... f5 {[%clk 0:02:35.2]} 15. exf6 {[%clk 0:01:22.7]} 15...
Bxf6 {[%clk 0:02:30.8]} 16. Bc3 {[%clk 0:01:11.6]} 16... O-O {[%clk 0:02:30.3]}
17. Qe2 {[%clk 0:01:05.8]} 17... Nxd4 {[%clk 0:02:22.1]} 18. Bxd4 {[%clk
0:00:52.4]} 18... Nf5 {[%clk 0:02:17.9]} 19. Bxf5 {[%clk 0:00:48.8]} 19... exf5
{[%clk 0:02:14.4]} 20. Bxf6 {[%clk 0:00:43.8]} 20... Qxf6 {[%clk 0:02:12.9]} 21.
Ne5 {[%clk 0:00:44]} 21... Bc6 {[%clk 0:02:11.1]} 22. Rad1 {[%clk 0:00:30.6]}
22... Rce8 {[%clk 0:01:58.6]} 23. Qf2 {[%clk 0:00:26.4]} 23... Qd6 {[%clk
0:01:57.8]} 24. c3 {[%clk 0:00:24.8]} 24... Qc7 {[%clk 0:01:56.6]} 25. b4 {[%clk
0:00:24.1]} 25... Bb5 {[%clk 0:01:54.9]} 26. Rfe1 {[%clk 0:00:19.9]} 26... Qxc3
{[%clk 0:01:53.1]} 27. Rxd5 {[%clk 0:00:16.7]} 27... Qxb4 {[%clk 0:01:52.3]} 28.
Rc1 {[%clk 0:00:09.5]} 28... Rc8 {[%clk 0:01:49.3]} 29. Rxc8 {[%clk 0:00:06.1]}
29... Rxc8 {[%clk 0:01:49.8]} 30. h3 {[%clk 0:00:06]} 30... h6 {[%clk
0:01:46.4]} 31. Kh2 {[%clk 0:00:05.8]} 31... Qxa5 {[%clk 0:01:24.8]} 32. Qg3
{[%clk 0:00:05.3]} 32... Qb4 {[%clk 0:01:15.9]} 33. Qg6 {[%clk 0:00:02.3]} 33...
Qxf4+ {[%clk 0:01:16]} 0-1

[Event "Late-Titled-Tuesday-Blitz-April-30-2024"]
[Site "Chess.com"]
[Date "2024.04.30"]
[Round "4"]
[White "Laico"]
[Black "BeanScreen"]
[Result "0-1"]
[WhiteElo "2422"]
[BlackElo "2679"]
[TimeControl "180+1"]
[EndTime "14:39:30 PDT"]
[Termination "BeanScreen won by resignation"]

1. e4 {[%clk 0:02:57.3]} 1... e5 {[%clk 0:02:59.9]} 2. Nc3 {[%clk 0:02:57.4]}
2... Nc6 {[%clk 0:02:59.9]} 3. Bc4 {[%clk 0:02:57.5]} 3... Nf6 {[%clk
0:02:59.8]} 4. d3 {[%clk 0:02:57.7]} 4... Na5 {[%clk 0:02:59.7]} 5. Bb3 {[%clk
0:02:57.2]} 5... Nxb3 {[%clk 0:02:59.4]} 6. axb3 {[%clk 0:02:58.1]} 6... d5
{[%clk 0:02:59.5]} 7. exd5 {[%clk 0:02:53.5]} 7... Nxd5 {[%clk 0:03:00.4]} 8.
Qf3 {[%clk 0:02:53.8]} 8... Nb4 {[%clk 0:02:53.4]} 9. Qe2 {[%clk 0:02:52.6]}
9... Bd6 {[%clk 0:02:47]} 10. Ne4 {[%clk 0:02:47.5]} 10... O-O {[%clk
0:02:41.2]} 11. c3 {[%clk 0:02:44.9]} 11... Nd5 {[%clk 0:02:26.8]} 12. Nf3
{[%clk 0:02:42.8]} 12... f5 {[%clk 0:02:25.6]} 13. Nxd6 {[%clk 0:02:27.1]} 13...
cxd6 {[%clk 0:02:26.5]} 14. O-O {[%clk 0:02:16.1]} 14... Qf6 {[%clk 0:02:13.4]}
15. d4 {[%clk 0:02:07.8]} 15... e4 {[%clk 0:02:12.1]} 16. Qc4 {[%clk 0:02:07.3]}
16... Be6 {[%clk 0:02:02.9]} 17. Ng5 {[%clk 0:02:07.4]} 17... a6 {[%clk
0:01:19.7]} 18. Nxe6 {[%clk 0:01:42.6]} 18... Qxe6 {[%clk 0:01:20.6]} 19. Re1
{[%clk 0:01:40.8]} 19... Rac8 {[%clk 0:01:17.7]} 20. Qe2 {[%clk 0:01:30.8]}
20... Rce8 {[%clk 0:01:15.2]} 21. c4 {[%clk 0:01:22.6]} 21... Nb4 {[%clk
0:01:13.7]} 22. Be3 {[%clk 0:00:55.2]} 22... f4 {[%clk 0:01:09.8]} 23. Bd2
{[%clk 0:00:54]} 23... Nc2 {[%clk 0:01:07.8]} 24. d5 {[%clk 0:00:44.5]} 24...
Qg6 {[%clk 0:01:04.6]} 25. Bc3 {[%clk 0:00:37.8]} 25... Nxa1 {[%clk 0:00:55.5]}
26. Rxa1 {[%clk 0:00:36.7]} 26... f3 {[%clk 0:00:54.5]} 27. Qf1 {[%clk
0:00:36.7]} 27... e3 {[%clk 0:00:54.2]} 28. fxe3 {[%clk 0:00:33.8]} 28... Rxe3
{[%clk 0:00:51]} 29. Re1 {[%clk 0:00:21.8]} 29... f2+ {[%clk 0:00:50.2]} 30.
Qxf2 {[%clk 0:00:18.8]} 30... Rxf2 {[%clk 0:00:49.6]} 31. Kxf2 {[%clk
0:00:19.7]} 31... Rxe1 {[%clk 0:00:49.3]} 0-1

[Event "Late-Titled-Tuesday-Blitz-April-30-2024"]
[Site "Chess.com"]
[Date "2024.04.30"]
[Round "4"]
[White "ChEsper99"]
[Black "Balla_Tamas"]
[Result "0-1"]
[WhiteElo "2232"]
[BlackElo "2496"]
[TimeControl "180+1"]
[EndTime "14:39:34 PDT"]
[Termination "Balla_Tamas won by resignation"]

1. Nf3 {[%clk 0:02:59.4]} 1... c5 {[%clk 0:03:00.2]} 2. g3 {[%clk 0:01:53]} 2...
Nc6 {[%clk 0:02:59]} 3. d4 {[%clk 0:01:51.5]} 3... cxd4 {[%clk 0:02:58.5]} 4.
Nxd4 {[%clk 0:01:52.4]} 4... g6 {[%clk 0:02:58.8]} 5. Bg2 {[%clk 0:01:51.7]}
5... Bg7 {[%clk 0:02:59.3]} 6. Nxc6 {[%clk 0:01:43]} 6... bxc6 {[%clk
0:03:00.2]} 7. c4 {[%clk 0:01:42.1]} 7... Nf6 {[%clk 0:03:00.2]} 8. O-O {[%clk
0:01:41.9]} 8... O-O {[%clk 0:03:00.3]} 9. Nc3 {[%clk 0:01:41.9]} 9... e6 {[%clk
0:02:52.5]} 10. e4 {[%clk 0:01:41.9]} 10... Bb7 {[%clk 0:02:35.7]} 11. e5 {[%clk
0:01:35.7]} 11... Ne8 {[%clk 0:02:35.7]} 12. f4 {[%clk 0:01:34.7]} 12... d5
{[%clk 0:02:31]} 13. exd6 {[%clk 0:01:32.4]} 13... Nxd6 {[%clk 0:02:28.9]} 14.
Qe2 {[%clk 0:01:26.8]} 14... c5 {[%clk 0:02:19.1]} 15. Bxb7 {[%clk 0:01:25]}
15... Nxb7 {[%clk 0:02:20]} 16. Be3 {[%clk 0:01:22.8]} 16... Rb8 {[%clk
0:02:18.8]} 17. Rfd1 {[%clk 0:01:21.5]} 17... Qc7 {[%clk 0:02:14.2]} 18. Nb5
{[%clk 0:01:20.4]} 18... Qb6 {[%clk 0:02:12]} 19. Rac1 {[%clk 0:01:07.7]} 19...
Rfd8 {[%clk 0:02:11]} 20. Rxd8+ {[%clk 0:00:44.3]} 20... Rxd8 {[%clk 0:02:11.9]}
21. Nc3 {[%clk 0:00:40]} 21... Nd6 {[%clk 0:02:09.8]} 22. b3 {[%clk 0:00:36.9]}
22... Nf5 {[%clk 0:02:09.7]} 23. Na4 {[%clk 0:00:27.4]} 23... Qc6 {[%clk
0:01:59.5]} 24. Bxc5 {[%clk 0:00:15.8]} 24... Nd4 {[%clk 0:01:58.9]} 25. Qf2
{[%clk 0:00:07]} 25... Nf3+ {[%clk 0:01:57]} 26. Kf1 {[%clk 0:00:07.4]} 26...
Rd2 {[%clk 0:01:57.6]} 27. Qe3 {[%clk 0:00:06.9]} 27... Nxh2+ {[%clk 0:01:53.2]}
28. Ke1 {[%clk 0:00:06.8]} 28... Nf3+ {[%clk 0:01:47.6]} 29. Kf1 {[%clk
0:00:06]} 29... Rxa2 {[%clk 0:01:35.2]} 30. Nc3 {[%clk 0:00:05.1]} 30... Nd2+
{[%clk 0:01:21.1]} 31. Ke1 {[%clk 0:00:04.2]} 31... Qh1+ {[%clk 0:01:15.3]} 32.
Qg1 {[%clk 0:00:02.8]} 32... Nf3+ {[%clk 0:01:12.1]} 0-1

[Event "Late-Titled-Tuesday-Blitz-April-30-2024"]
[Site "Chess.com"]
[Date "2024.04.30"]
[Round "4"]
[White "patzer-reloaded"]
[Black "HonzaVykouk"]
[Result "0-1"]
[WhiteElo "2558"]
[BlackElo "2755"]
[TimeControl "180+1"]
[EndTime "14:39:38 PDT"]
[Termination "HonzaVykouk won on time"]

1. d3 {[%clk 0:03:00.9]} 1... d6 {[%clk 0:02:58.7]} 2. Nf3 {[%clk 0:03:00.9]}
2... g6 {[%clk 0:02:58.2]} 3. g3 {[%clk 0:03:01.5]} 3... Bg7 {[%clk 0:02:58.5]}
4. Bg2 {[%clk 0:03:02.2]} 4... e5 {[%clk 0:02:58]} 5. O-O {[%clk 0:03:02.7]}
5... Ne7 {[%clk 0:02:58.6]} 6. c4 {[%clk 0:03:03.2]} 6... O-O {[%clk 0:02:59]}
7. Nc3 {[%clk 0:03:03.8]} 7... f5 {[%clk 0:02:58.8]} 8. Rb1 {[%clk 0:03:03]}
8... c6 {[%clk 0:02:59.2]} 9. Qc2 {[%clk 0:02:53.4]} 9... d5 {[%clk 0:02:57]}
10. b4 {[%clk 0:02:47.1]} 10... e4 {[%clk 0:02:51.6]} 11. Nd2 {[%clk 0:02:14.2]}
11... Be6 {[%clk 0:02:49.8]} 12. Na4 {[%clk 0:01:35.3]} 12... Nd7 {[%clk
0:02:46.6]} 13. Nb3 {[%clk 0:01:33.4]} 13... b6 {[%clk 0:02:35.9]} 14. Bb2
{[%clk 0:01:33.5]} 14... Ne5 {[%clk 0:02:22.6]} 15. Nd4 {[%clk 0:01:22.5]} 15...
Bd7 {[%clk 0:02:22.1]} 16. cxd5 {[%clk 0:01:11.3]} 16... cxd5 {[%clk 0:02:21.3]}
17. Rfc1 {[%clk 0:01:02.3]} 17... Rc8 {[%clk 0:02:02.8]} 18. Qb3 {[%clk
0:01:01.9]} 18... Rxc1+ {[%clk 0:02:01.5]} 19. Rxc1 {[%clk 0:01:02.8]} 19... Qe8
{[%clk 0:01:44.1]} 20. b5 {[%clk 0:01:01.5]} 20... Kh8 {[%clk 0:01:39]} 21. Nc3
{[%clk 0:00:48.7]} 21... exd3 {[%clk 0:01:32.5]} 22. Nxd5 {[%clk 0:00:46.9]}
22... Nxd5 {[%clk 0:01:30.4]} 23. Bxd5 {[%clk 0:00:42.2]} 23... dxe2 {[%clk
0:01:29]} 24. Nxe2 {[%clk 0:00:40.7]} 24... Bxb5 {[%clk 0:01:28.7]} 25. Nd4
{[%clk 0:00:34.4]} 25... Nd3 {[%clk 0:01:18.7]} 26. Qxb5 {[%clk 0:00:10.5]}
26... Nxc1 {[%clk 0:01:17.1]} 27. Qc4 {[%clk 0:00:01.2]} 27... Ne2+ {[%clk
0:01:04]} 28. Nxe2 {[%clk 0:00:00.8]} 28... Bxb2 {[%clk 0:01:03.7]} 29. Nf4
{[%clk 0:00:01]} 29... Qc8 {[%clk 0:00:58.1]} 30. Qc3+ {[%clk 0:00:01.3]} 30...
Bxc3 {[%clk 0:00:58]} 0-1

[Event "Late-Titled-Tuesday-Blitz-April-30-2024"]
[Site "Chess.com"]
[Date "2024.04.30"]
[Round "4"]
[White "Hudijegszid"]
[Black "shirovin"]
[Result "1-0"]
[WhiteElo "2453"]
[BlackElo "2071"]
[TimeControl "180+1"]
[EndTime "14:39:48 PDT"]
[Termination "Hudijegszid won by resignation"]

1. Nf3 {[%clk 0:02:58.2]} 1... Nf6 {[%clk 0:02:58.4]} 2. g3 {[%clk 0:02:56.8]}
2... g6 {[%clk 0:02:52.9]} 3. b3 {[%clk 0:02:55.8]} 3... Bg7 {[%clk 0:02:53.2]}
4. Bb2 {[%clk 0:02:55.8]} 4... c5 {[%clk 0:02:53.8]} 5. c4 {[%clk 0:02:54.5]}
5... O-O {[%clk 0:02:52.3]} 6. Bg2 {[%clk 0:02:53.8]} 6... d5 {[%clk 0:02:51.9]}
7. cxd5 {[%clk 0:02:53.2]} 7... Nxd5 {[%clk 0:02:52]} 8. Bxg7 {[%clk 0:02:53.7]}
8... Kxg7 {[%clk 0:02:49.5]} 9. O-O {[%clk 0:02:54.6]} 9... Nc6 {[%clk
0:02:45.2]} 10. d4 {[%clk 0:02:54.9]} 10... Ndb4 {[%clk 0:02:40.4]} 11. a3
{[%clk 0:02:43.9]} 11... Nd5 {[%clk 0:02:32.4]} 12. dxc5 {[%clk 0:02:28.8]}
12... Bf5 {[%clk 0:02:27.9]} 13. Qc1 {[%clk 0:02:20.5]} 13... e5 {[%clk
0:02:10.5]} 14. Rd1 {[%clk 0:02:17.9]} 14... Be6 {[%clk 0:02:00.9]} 15. e4
{[%clk 0:02:12.6]} 15... Nd4 {[%clk 0:01:57.3]} 16. Nxd4 {[%clk 0:02:07.6]}
16... exd4 {[%clk 0:01:56]} 17. exd5 {[%clk 0:02:07.4]} 17... Bxd5 {[%clk
0:01:55.3]} 18. Rxd4 {[%clk 0:01:52.2]} 18... Qf6 {[%clk 0:01:46.8]} 19. Qc3
{[%clk 0:01:49.5]} 19... Bxb3 {[%clk 0:01:32.2]} 20. Rb4 {[%clk 0:01:43.2]}
20... Be6 {[%clk 0:01:06.4]} 21. Qxf6+ {[%clk 0:01:41.9]} 21... Kxf6 {[%clk
0:01:06.2]} 22. Nc3 {[%clk 0:01:42.1]} 22... Rac8 {[%clk 0:01:04.9]} 23. Rxb7
{[%clk 0:01:41]} 23... Rfd8 {[%clk 0:01:02]} 24. Rxa7 {[%clk 0:01:38.7]} 24...
Rd3 {[%clk 0:00:58.2]} 25. Ne4+ {[%clk 0:01:37.3]} 25... Kg7 {[%clk 0:00:57.5]}
26. Ng5 {[%clk 0:01:25.9]} 26... Bb3 {[%clk 0:00:48.6]} 27. c6 {[%clk
0:01:17.8]} 27... Rcd8 {[%clk 0:00:47.1]} 28. c7 {[%clk 0:01:14.4]} 28... Rd1+
{[%clk 0:00:45.7]} 29. Rxd1 {[%clk 0:01:12.3]} 29... Rxd1+ {[%clk 0:00:46.2]}
30. Bf1 {[%clk 0:01:12.1]} 30... Rc1 {[%clk 0:00:40]} 31. Kg2 {[%clk 0:01:02.3]}
31... h6 {[%clk 0:00:35.7]} 32. Ba6 {[%clk 0:00:58.3]} 32... Bd5+ {[%clk
0:00:27]} 33. Nf3 {[%clk 0:00:53.3]} 1-0

[Event "Late-Titled-Tuesday-Blitz-April-30-2024"]
[Site "Chess.com"]
[Date "2024.04.30"]
[Round "4"]
[White "amintabatabaei"]
[Black "TheSilmarils"]
[Result "1-0"]
[WhiteElo "3114"]
[BlackElo "2920"]
[TimeControl "180+1"]
[EndTime "14:39:53 PDT"]
[Termination "amintabatabaei won by resignation"]

1. c4 {[%clk 0:03:00.9]} 1... Nf6 {[%clk 0:03:00.1]} 2. Nc3 {[%clk 0:03:01]}
2... c5 {[%clk 0:03:00.8]} 3. g3 {[%clk 0:03:00.3]} 3... e6 {[%clk 0:03:01.2]}
4. Nf3 {[%clk 0:03:00.5]} 4... b6 {[%clk 0:03:01.5]} 5. Bg2 {[%clk 0:02:58.9]}
5... Bb7 {[%clk 0:03:02.1]} 6. O-O {[%clk 0:02:55.9]} 6... a6 {[%clk 0:03:02.7]}
7. d4 {[%clk 0:02:53.6]} 7... cxd4 {[%clk 0:03:03.6]} 8. Qxd4 {[%clk 0:02:54.2]}
8... d6 {[%clk 0:03:03.7]} 9. Bg5 {[%clk 0:02:53.5]} 9... Nbd7 {[%clk 0:03:04]}
10. Rfd1 {[%clk 0:02:49.2]} 10... Be7 {[%clk 0:03:04]} 11. e4 {[%clk 0:02:44.5]}
11... O-O {[%clk 0:03:01.2]} 12. b3 {[%clk 0:02:39.5]} 12... Qc7 {[%clk
0:02:54.3]} 13. h3 {[%clk 0:02:38]} 13... Rfe8 {[%clk 0:02:48.5]} 14. Rac1
{[%clk 0:02:37.3]} 14... Rad8 {[%clk 0:02:45.9]} 15. Nd2 {[%clk 0:02:25.7]}
15... Qb8 {[%clk 0:02:41.8]} 16. Qd3 {[%clk 0:02:21.2]} 16... Qa8 {[%clk
0:02:31.4]} 17. Qe2 {[%clk 0:02:20.6]} 17... Bf8 {[%clk 0:02:21.3]} 18. Be3
{[%clk 0:02:07.9]} 18... Nc5 {[%clk 0:02:03.4]} 19. Bd4 {[%clk 0:02:05.2]} 19...
e5 {[%clk 0:01:56.3]} 20. Be3 {[%clk 0:01:51]} 20... Nfxe4 {[%clk 0:01:31.5]}
21. Ndxe4 {[%clk 0:01:33.7]} 21... Nxe4 {[%clk 0:01:32.4]} 22. Nd5 {[%clk
0:01:34.3]} 22... Bxd5 {[%clk 0:00:50.9]} 23. Rxd5 {[%clk 0:01:35.2]} 23... f5
{[%clk 0:00:47.2]} 24. Bxb6 {[%clk 0:01:27.9]} 24... Rb8 {[%clk 0:00:47.3]} 25.
Be3 {[%clk 0:01:23.3]} 25... Nf6 {[%clk 0:00:36.3]} 26. Rxe5 {[%clk 0:01:14.5]}
26... Qxg2+ {[%clk 0:00:30]} 27. Kxg2 {[%clk 0:01:14.5]} 27... dxe5 {[%clk
0:00:30.9]} 28. c5 {[%clk 0:01:15]} 28... Kh8 {[%clk 0:00:30.2]} 29. c6 {[%clk
0:01:13.9]} 29... Rbc8 {[%clk 0:00:30.8]} 30. Qxa6 {[%clk 0:01:12]} 30... Nd5
{[%clk 0:00:31.5]} 31. Bc5 {[%clk 0:01:08.8]} 31... f4 {[%clk 0:00:26.8]} 32.
Bxf8 {[%clk 0:01:00.3]} 32... Rxf8 {[%clk 0:00:27.7]} 33. Qb5 {[%clk 0:00:59.3]}
33... Ne7 {[%clk 0:00:20.2]} 34. c7 {[%clk 0:00:58.7]} 34... fxg3 {[%clk
0:00:19.2]} 35. fxg3 {[%clk 0:00:58.5]} 35... Nf5 {[%clk 0:00:19.5]} 36. Qxe5
{[%clk 0:00:57.9]} 36... h5 {[%clk 0:00:12.6]} 37. h4 {[%clk 0:00:55.1]} 37...
Kh7 {[%clk 0:00:11.8]} 38. b4 {[%clk 0:00:54.9]} 38... g6 {[%clk 0:00:11.8]} 39.
b5 {[%clk 0:00:54.8]} 39... Rfe8 {[%clk 0:00:11.6]} 40. Qxe8 {[%clk 0:00:54.7]}
40... Rxe8 {[%clk 0:00:12.5]} 41. c8=Q {[%clk 0:00:55.3]} 1-0

[Event "Late-Titled-Tuesday-Blitz-April-30-2024"]
[Site "Chess.com"]
[Date "2024.04.30"]
[Round "4"]
[White "lamomiajunior"]
[Black "WindWhistler11"]
[Result "1-0"]
[WhiteElo "2748"]
[BlackElo "2556"]
[TimeControl "180+1"]
[EndTime "14:39:55 PDT"]
[Termination "lamomiajunior won on time"]

1. d4 {[%clk 0:03:00.9]} 1... Nf6 {[%clk 0:02:48.7]} 2. Nc3 {[%clk 0:03:00.6]}
2... e6 {[%clk 0:02:47.1]} 3. Bf4 {[%clk 0:02:59.7]} 3... d5 {[%clk 0:02:47.7]}
4. Nb5 {[%clk 0:02:59.7]} 4... Na6 {[%clk 0:02:47.8]} 5. e3 {[%clk 0:03:00.2]}
5... c6 {[%clk 0:02:48]} 6. Nc3 {[%clk 0:03:00.3]} 6... Nc7 {[%clk 0:02:45.9]}
7. Nf3 {[%clk 0:03:00.5]} 7... Be7 {[%clk 0:02:45.5]} 8. Bd3 {[%clk 0:02:59.9]}
8... O-O {[%clk 0:02:45.4]} 9. Ne5 {[%clk 0:03:00.6]} 9... Nce8 {[%clk
0:02:38.9]} 10. Qf3 {[%clk 0:02:58.5]} 10... Nd6 {[%clk 0:02:38.6]} 11. g4
{[%clk 0:02:56.1]} 11... Qb6 {[%clk 0:02:31.4]} 12. O-O-O {[%clk 0:02:51.5]}
12... Nd7 {[%clk 0:02:17.7]} 13. g5 {[%clk 0:02:48.9]} 13... Nxe5 {[%clk
0:02:13.2]} 14. dxe5 {[%clk 0:02:49.6]} 14... Nf5 {[%clk 0:02:08]} 15. h4 {[%clk
0:02:48.9]} 15... Qa5 {[%clk 0:01:52.5]} 16. Kb1 {[%clk 0:02:45.9]} 16... b5
{[%clk 0:01:48.7]} 17. h5 {[%clk 0:02:41.3]} 17... b4 {[%clk 0:01:47.6]} 18. Ne2
{[%clk 0:02:41.4]} 18... c5 {[%clk 0:01:41.5]} 19. Bxf5 {[%clk 0:02:40.4]} 19...
exf5 {[%clk 0:01:41.4]} 20. g6 {[%clk 0:02:37.5]} 20... Be6 {[%clk 0:01:24.7]}
21. h6 {[%clk 0:02:37.2]} 21... fxg6 {[%clk 0:01:13.9]} 22. hxg7 {[%clk
0:02:37.2]} 22... Rf7 {[%clk 0:01:07.5]} 23. Rxh7 {[%clk 0:02:17.2]} 23... Rxg7
{[%clk 0:00:40]} 24. Rh6 {[%clk 0:02:02.8]} 24... Kf7 {[%clk 0:00:32.9]} 25.
Rdh1 {[%clk 0:01:59.9]} 25... Rag8 {[%clk 0:00:26.7]} 26. Nc1 {[%clk 0:01:59]}
26... c4 {[%clk 0:00:24.4]} 27. Ne2 {[%clk 0:01:58]} 27... c3 {[%clk 0:00:18.4]}
28. Nd4 {[%clk 0:01:58.1]} 28... Bc5 {[%clk 0:00:12.1]} 29. Nxe6 {[%clk
0:01:44.6]} 29... Kxe6 {[%clk 0:00:11.7]} 30. Rd1 {[%clk 0:01:43.3]} 30... Be7
{[%clk 0:00:10.5]} 31. e4 {[%clk 0:01:39.6]} 31... dxe4 {[%clk 0:00:07.2]} 32.
Qe2 {[%clk 0:01:40.3]} 32... Qc5 {[%clk 0:00:04.4]} 33. Qa6+ {[%clk 0:01:36]}
33... Kf7 {[%clk 0:00:05]} 34. e6+ {[%clk 0:01:25.2]} 34... Kf6 {[%clk
0:00:04.7]} 35. Be3 {[%clk 0:01:23.7]} 35... Qc8 {[%clk 0:00:01.6]} 36. Qxa7
{[%clk 0:01:09.3]} 36... Qxe6 {[%clk 0:00:00.7]} 37. Bd4+ {[%clk 0:01:08.8]}
37... Kg5 {[%clk 0:00:01.4]} 38. Rhh1 {[%clk 0:01:06.4]} 38... f4 {[%clk
0:00:01.4]} 39. Rdg1+ {[%clk 0:01:06.1]} 39... Kf5 {[%clk 0:00:02]} 40. Qa5+
{[%clk 0:01:04.9]} 1-0

[Event "Late-Titled-Tuesday-Blitz-April-30-2024"]
[Site "Chess.com"]
[Date "2024.04.30"]
[Round "4"]
[White "miraitrunks"]
[Black "Lady_Nika"]
[Result "0-1"]
[WhiteElo "2245"]
[BlackElo "2486"]
[TimeControl "180+1"]
[EndTime "14:39:56 PDT"]
[Termination "Lady_Nika won by resignation"]

1. e4 {[%clk 0:03:00]} 1... c5 {[%clk 0:02:59.3]} 2. Nf3 {[%clk 0:03:00]} 2...
e6 {[%clk 0:02:58.9]} 3. d4 {[%clk 0:02:59.8]} 3... cxd4 {[%clk 0:02:59]} 4.
Nxd4 {[%clk 0:03:00.7]} 4... a6 {[%clk 0:02:59.9]} 5. c4 {[%clk 0:03:01]} 5...
Nc6 {[%clk 0:03:00.2]} 6. Nc3 {[%clk 0:03:01]} 6... Nf6 {[%clk 0:03:00.1]} 7.
Be2 {[%clk 0:03:00.1]} 7... Qc7 {[%clk 0:03:00.2]} 8. O-O {[%clk 0:02:59.8]}
8... Be7 {[%clk 0:02:56.4]} 9. Kh1 {[%clk 0:02:58.2]} 9... O-O {[%clk
0:02:55.4]} 10. f4 {[%clk 0:02:58.6]} 10... d6 {[%clk 0:02:55.1]} 11. Bf3 {[%clk
0:02:41.9]} 11... Bd7 {[%clk 0:02:45.6]} 12. b3 {[%clk 0:02:40.1]} 12... Nxd4
{[%clk 0:02:44.8]} 13. Qxd4 {[%clk 0:02:40]} 13... Bc6 {[%clk 0:02:45.1]} 14.
Bb2 {[%clk 0:02:39.6]} 14... e5 {[%clk 0:02:45]} 15. fxe5 {[%clk 0:02:36.2]}
15... dxe5 {[%clk 0:02:45.9]} 16. Qe3 {[%clk 0:02:33.5]} 16... Rad8 {[%clk
0:02:22.6]} 17. Rad1 {[%clk 0:02:32.9]} 17... b5 {[%clk 0:02:10.3]} 18. Nd5
{[%clk 0:02:19.1]} 18... Bxd5 {[%clk 0:01:53.5]} 19. exd5 {[%clk 0:02:09.2]}
19... Bd6 {[%clk 0:01:52.9]} 20. cxb5 {[%clk 0:01:56]} 20... axb5 {[%clk
0:01:52.2]} 21. Rc1 {[%clk 0:01:56.1]} 21... Qa5 {[%clk 0:01:49.5]} 22. Rc2
{[%clk 0:01:38]} 22... Rfe8 {[%clk 0:01:44.3]} 23. Be4 {[%clk 0:01:10.2]} 23...
Nxe4 {[%clk 0:01:36.8]} 24. Qxe4 {[%clk 0:01:11.1]} 24... f6 {[%clk 0:01:36.7]}
25. Rf3 {[%clk 0:00:57.3]} 25... Qxa2 {[%clk 0:01:30.7]} 26. Rh3 {[%clk
0:00:51.8]} 26... g6 {[%clk 0:01:18.7]} 27. Qh4 {[%clk 0:00:47.7]} 27... Rd7
{[%clk 0:01:15.1]} 28. Rhc3 {[%clk 0:00:11.2]} 28... Kg7 {[%clk 0:01:03.6]} 29.
Rc6 {[%clk 0:00:11]} 29... Qxb3 {[%clk 0:01:00.5]} 30. h3 {[%clk 0:00:10.9]}
30... Red8 {[%clk 0:00:54.4]} 31. Qg4 {[%clk 0:00:10.3]} 31... Qxd5 {[%clk
0:00:52.1]} 32. Rd2 {[%clk 0:00:10]} 32... Qxc6 {[%clk 0:00:51.7]} 0-1

[Event "Late-Titled-Tuesday-Blitz-April-30-2024"]
[Site "Chess.com"]
[Date "2024.04.30"]
[Round "4"]
[White "shimastream"]
[Black "bascheyaro"]
[Result "1-0"]
[WhiteElo "3031"]
[BlackElo "2846"]
[TimeControl "180+1"]
[EndTime "14:40:00 PDT"]
[Termination "shimastream won by resignation"]

1. Nf3 {[%clk 0:03:00.9]} 1... d5 {[%clk 0:03:00.1]} 2. g3 {[%clk 0:03:01.1]}
2... Nf6 {[%clk 0:03:00.5]} 3. Bg2 {[%clk 0:03:01.6]} 3... Bf5 {[%clk
0:03:00.6]} 4. c4 {[%clk 0:02:59.3]} 4... c6 {[%clk 0:03:00.5]} 5. Qb3 {[%clk
0:02:53.5]} 5... Qb6 {[%clk 0:03:00.4]} 6. d3 {[%clk 0:02:53.7]} 6... e6 {[%clk
0:03:00.6]} 7. Be3 {[%clk 0:02:53.3]} 7... Qc7 {[%clk 0:02:55.2]} 8. O-O {[%clk
0:02:51.6]} 8... Nbd7 {[%clk 0:02:53]} 9. Nc3 {[%clk 0:02:51.6]} 9... Nc5 {[%clk
0:02:33.5]} 10. Bxc5 {[%clk 0:02:23.6]} 10... Bxc5 {[%clk 0:02:34.4]} 11. cxd5
{[%clk 0:02:23.2]} 11... exd5 {[%clk 0:02:27.8]} 12. Rac1 {[%clk 0:02:23.8]}
12... Qb6 {[%clk 0:02:27.4]} 13. Qc2 {[%clk 0:02:19.5]} 13... Be7 {[%clk
0:02:26.7]} 14. Na4 {[%clk 0:02:17.4]} 14... Qd8 {[%clk 0:02:16]} 15. Nd4 {[%clk
0:02:17]} 15... Bg6 {[%clk 0:02:10.7]} 16. Nc5 {[%clk 0:02:14]} 16... Bxc5
{[%clk 0:02:10]} 17. Qxc5 {[%clk 0:02:13.9]} 17... Qe7 {[%clk 0:02:10.2]} 18. b4
{[%clk 0:02:02.9]} 18... Qxc5 {[%clk 0:02:09.3]} 19. Rxc5 {[%clk 0:02:01.3]}
19... a6 {[%clk 0:02:05]} 20. a4 {[%clk 0:01:59]} 20... Ke7 {[%clk 0:01:57]} 21.
b5 {[%clk 0:01:56.1]} 21... axb5 {[%clk 0:01:39.4]} 22. axb5 {[%clk 0:01:57]}
22... Kd6 {[%clk 0:01:39.3]} 23. Rfc1 {[%clk 0:01:56.9]} 23... Nd7 {[%clk
0:01:39.5]} 24. R5c3 {[%clk 0:01:18.3]} 24... c5 {[%clk 0:01:39.7]} 25. Nb3
{[%clk 0:01:17.8]} 25... b6 {[%clk 0:01:39.9]} 26. Bf3 {[%clk 0:01:11.4]} 26...
Ra4 {[%clk 0:01:37]} 27. Nd2 {[%clk 0:01:10.2]} 27... Rha8 {[%clk 0:01:28.1]}
28. Nf1 {[%clk 0:01:05.1]} 28... R8a5 {[%clk 0:01:25.7]} 29. Ne3 {[%clk
0:01:03.1]} 29... Nf6 {[%clk 0:01:21]} 30. Rb3 {[%clk 0:01:03.2]} 30... Ra1
{[%clk 0:01:14.5]} 31. Rbb1 {[%clk 0:01:00.7]} 31... Rxb1 {[%clk 0:01:13.1]} 32.
Rxb1 {[%clk 0:01:01.6]} 32... Ke6 {[%clk 0:01:08.4]} 33. g4 {[%clk 0:01:00.2]}
33... h6 {[%clk 0:01:07.9]} 34. h4 {[%clk 0:00:58.6]} 34... Ra4 {[%clk
0:00:10.7]} 35. g5 {[%clk 0:00:58.2]} 35... hxg5 {[%clk 0:00:10.8]} 36. hxg5
{[%clk 0:00:59.1]} 36... d4 {[%clk 0:00:10]} 37. gxf6 {[%clk 0:00:54.9]} 37...
gxf6 {[%clk 0:00:10.3]} 38. Nd5 {[%clk 0:00:53.4]} 38... c4 {[%clk 0:00:10.7]}
39. Nxb6 {[%clk 0:00:52.1]} 1-0